Cogmind - Beta 13 @@@ ROGUE MODE // 2024.04.13 @ 14:30:31 Player: SovietPaperclip Result: Destroyed by Y-54 Guardian with Gatling Laser Performance ------------- Evolutions (3) 1500 Regions Visited (9) 1800 Robots Destroyed (89) 445 Value Destroyed (3495) 3495 Prototype IDs (28) 560 Alien Tech Used (0) 0 Bonus (2260) 2260 TOTAL SCORE: 10060 Bonus ------- High Alert Combat Kills 525 Follower Combat Kills 35 Entered Garrisons 400 Used RIF Installer 1000 Aligned with FarCom 300 Cogmind --------- Core Integrity 0/700 Matter 300/300 Energy 100/100 System Corruption 1% Temperature Cool (6) Movement Core (400) Ox7 Location -7/Garrison Parts ------- > --- POWER (1) -------- (None) > --- PROPULSION (4) --- (None) > --- UTILITY (6) ------ Large Storage Unit Machine Analyzer Improved Signal Interpreter Hacking Suite Relay Coupler [Sentry] (9) > --- WEAPON (2) ------- Longsword +1 > --- INVENTORY (15) --- Coolant Injector High-capacity Matter Pod (200) High-capacity Matter Pod (200) Structural Scanner Experimental Sensor Array Advanced Transmission Jammer Improved Light Armor Plating Improved Shield Generator System Shield Relay Coupler [Grunt] (30) Relay Coupler [Sentry] (26) Peak State ------------ > --- POWER ------------ Enhanced Nuclear Core > --- PROPULSION ------- Flying Fortress v7 > --- UTILITY ---------- Large Storage Unit Machine Analyzer Experimental Sensor Array Improved Signal Interpreter Advanced Transmission Jammer Hacking Suite > --- WEAPON ----------- Remote Datajack Longsword +1 > --- INVENTORY -------- Micro Nuclear Core Improved Flight Unit Improved Flight Unit Structural Scanner ECM Suite Improved Light Armor Plating Improved Light Armor Plating Improved Shield Generator Hacking Suite System Shield High-powered Tractor Beam Improved Recalibrator Mini Grenade Launcher Plasma Cutter [Rating: 79] Favorites ----------- Power Light Ion Engine Engine Light Ion Engine Power Core Enhanced Nuclear Core Propulsion Aluminum Leg Leg Aluminum Leg Hover Unit Airjet Flight Unit Flying Fortress v7 Utility Large Storage Unit Device Seismic Detector Storage Large Storage Unit Processor Improved Signal Interpreter Hackware Hacking Suite Protection Light Armor Plating Weapon Light Assault Rifle Energy Gun Medium Laser Ballistic Gun Light Assault Rifle Launcher Mini Grenade Launcher Special Weapon Remote Datajack Slashing Weapon Longsword +1 Build | -11 -10 -10 -10 -9 -8 -7 -7 -7 -7 ------- Run | Yrd Mat Min Exi Min Mat Fac Gar Fac Gar Slots Evolved 6 | . . . . . 4 2 . . . Power . | . . . . . . . . . . Propulsion 2 | . . . . . 2 . . . . Utility 4 | . . . . . 2 2 . . . Weapon . | . . . . . . . . . . Parts Attached 85 | 6 3 2 . . 16 9 9 14 26 Power 9 | 1 . . . . 1 1 1 3 2 Engine 4 | 1 . . . . 1 . 1 1 . Core 5 | . . . . . . 1 . 2 2 Reactor . | . . . . . . . . . . Propulsion 19 | 2 . . . . 6 2 . . 9 Treads . | . . . . . . . . . . Leg 9 | 2 . . . . 5 . . . 2 Wheel . | . . . . . . . . . . Hover 7 | . . . . . . . . . 7 Flight 3 | . . . . . 1 2 . . . Utility 36 | 1 3 . . . 4 4 6 9 9 Device 20 | . 2 . . . 2 2 2 7 5 Storage 2 | 1 1 . . . . . . . . Processor 2 | . . . . . . 1 . 1 . Hackware 4 | . . . . . . 1 1 . 2 Protection 8 | . . . . . 2 . 3 1 2 Artifact . | . . . . . . . . . . Weapon 21 | 2 . 2 . . 5 2 2 2 6 Energy Gun 2 | 1 . . . . . . . 1 . Energy Cannon . | . . . . . . . . . . Ballistic Gun 7 | 1 . 1 . . 4 . . . 1 Ballistic Cannon . | . . . . . . . . . . Launcher 6 | . . 1 . . 1 1 2 . 1 Special Weapon 3 | . . . . . . . . 1 2 Impact Weapon . | . . . . . . . . . . Slashing Weapon 3 | . . . . . . 1 . . 2 Piercing Weapon . | . . . . . . . . . . Special Melee Weapon . | . . . . . . . . . . Unidentified Prototypes 4 | . . . . . 1 . . 3 . Parts Lost 23 | . . . . . 4 . 3 . 16 Power 4 | . . . . . 1 . 1 . 2 Propulsion 10 | . . . . . 1 . . . 9 Utility 5 | . . . . . 1 . 2 . 2 Weapon 4 | . . . . . 1 . . . 3 Highest Loss Streak 6 | . . . . . 2 . 2 . 6 To Critical Strikes . | . . . . . . . . . . Average Slot Usage (%) 84 | . 91 100 100 100 88 68 73 74 76 Engine 7 | . 14 14 14 14 7 4 6 2 . Core 2 | . . . . . . 2 . 4 6 Leg 15 | . 28 28 28 28 29 . . . . Hover 1 | . . . . . . . . . 8 Flight 2 | . . . . . . 6 7 7 1 Device 13 | . 6 14 14 14 10 22 13 16 8 Storage 9 | . 14 14 14 14 9 7 7 7 7 Processor 5 | . . . . . . 6 7 12 15 Hackware 3 | . . . . . . 6 4 7 11 Protection 3 | . . . . . 13 . 10 . . Ballistic Gun 12 | . 14 27 28 28 17 . . . 2 Launcher 1 | . . . . . . . 4 . 6 Slashing Weapon 2 | . . . . . . 6 7 7 2 Naked Turns . | . . . . . . . . . . Heaviest Build 46 | 12 29 29 27 27 34 32 46 43 38 Greatest Support 60 | 20 20 20 20 20 60 50 50 50 50 Greatest Overweight (x) 11 | . 1 1 1 1 1 . . . 11 Average Overweight (x) . | . . 1 1 1 . . . . 1 Largest Inventory Capacity 15 | 8 15 15 15 15 15 15 15 15 15 Average Capacity 14 | 7 11 15 15 15 15 15 15 15 15 Most Carried 15 | 3 6 9 14 14 15 15 15 15 15 Average Carried 11 | 1 3 7 11 14 13 11 12 14 11 Final Capacity 15 | 8 15 15 15 15 15 15 15 15 15 Final Carried 15 | 1 6 9 14 14 15 15 13 15 11 Class Distribution -------------------- 49% | Mutant 14% | Scavenger-Mutant 11% | Scout 6% | Infiltrator-Ninja 5% | Hacker-Mutant 5% | Ninja 3% | Skirmisher 3% | Hacker-Skirmisher Dominant Class ---------------- Mutant | -10/Materials Mutant | -10/Mines Mutant | -10/Exiles Mutant | -9/Mines Scavenger-Mutant | -8/Materials Scout | -7/Factory Mutant | -7/Garrison Ninja | -7/Factory Hacker-Mutant | -7/Garrison Resources | -11 -10 -10 -10 -9 -8 -7 -7 -7 -7 ----------- Run | Yrd Mat Min Exi Min Mat Fac Gar Fac Gar Matter Collected 2312 | 260 78 36 . . 425 116 35 245 1117 Remotely 698 | . . . . . 322 106 . . 270 Salvage Created 2607 | . 232 20 . . 732 80 439 290 814 Parts 156 | . 11 6 . . 46 12 24 17 40 Haulers Intercepted 9 | . 2 . . . 5 . . 2 . Recyclers Shooed . | . . . . . . . . . . Parts Field Recycled . | . . . . . . . . . . Retrieved Matter . | . . . . . . . . . . Parts Self-Destructed . | . . . . . . . . . . Prevented . | . . . . . . . . . . Kills | -11 -10 -10 -10 -9 -8 -7 -7 -7 -7 ------- Run | Yrd Mat Min Exi Min Mat Fac Gar Fac Gar Combat Hostiles Destroyed 67 | . 3 3 . . 8 1 18 1 33 Melee 13 | . . . . . . 1 5 1 6 Guns 10 | . 3 . . . 6 . . . 1 AOE 44 | . . 3 . . 2 . 13 . 26 Classes Destroyed 13 | . 3 1 . . 2 2 1 3 1 Worker 2 | . . . . . . . . 2 . Builder 1 | . . . . . 1 . . . . Tunneler 1 | . . . . . . . . 1 . Hauler 9 | . 2 . . . 5 . . 2 . Mechanic 1 | . . . . . . . . 1 . Operator 2 | . . . . . . 2 . . . Watcher 6 | . 1 . . . 3 1 . 1 . Swarmer 26 | . . 3 . . . . 8 . 15 Grunt 33 | . 3 . . . 6 . 8 . 16 Brawler 1 | . . . . . . . . . 1 Duelist 1 | . . . . . . . 1 . . Sentry 4 | . . . . . 2 . 1 . 1 Programmer 2 | . . . . . . 1 . 1 . Best Kill Streak 17 | . 3 3 . . 4 2 17 2 8 Combat Bots Only 17 | . 2 3 . . 2 1 17 1 8 Max Kills in Single Turn 3 | . 1 2 . . 1 1 3 1 3 Gunslinging . | . . . . . . . . . . Exploded 3 | . . 2 . . 1 . 3 . 3 Melee 1 | . . . . . . 1 1 1 1 Uniques/NPCs Destroyed . | . . . . . . . . . . Combat | -11 -10 -10 -10 -9 -8 -7 -7 -7 -7 -------- Run | Yrd Mat Min Exi Min Mat Fac Gar Fac Gar Hostile Shots Fired 412 | . 15 3 . . 60 3 96 6 229 Missed 139 | . 1 1 . . 22 . 41 3 71 Damage Taken 3839 | . 148 26 . . 590 45 880 47 2103 Core 801 | . 30 . . . 68 15 34 16 638 Absorbed by Shields 89 | . . . . . . . 89 . . Regen/Repaired (Parts) 11 | . . . . . 11 . . . . Core Remaining (%) 91 | 100 . . . 88 87 . . . . Volleys Fired 133 | . 16 2 . . 55 2 24 . 34 Largest 2 | . 2 1 . . 2 2 1 . 2 Hottest 70 | . 70 30 . . 50 53 30 . 58 Shots Fired 212 | . 32 2 . . 110 4 24 . 40 Gun 146 | . 32 . . . 104 2 . . 8 Cannon . | . . . . . . . . . . Launcher 62 | . . 2 . . 6 2 24 . 28 Special 4 | . . . . . . . . . 4 Kinetic 130 | . 16 . . . 104 2 . . 8 Thermal 16 | . 16 . . . . . . . . Explosive 62 | . . 2 . . 6 2 24 . 28 Electromagnetic . | . . . . . . . . . . Robot Hit Streak 9 | . 7 6 . . 6 . 5 . 9 Robot Miss Streak 6 | . 2 1 . . 4 . 2 . 6 Penetration Max . | . . . . . . . . . . Secondary Targets . | . . . . . . . . . . Shots Hit Robots 164 | . 20 1 . . 60 4 19 14 46 Core Hits 162 | . 11 2 . . 41 4 34 5 65 Critical Kills . | . . . . . . . . . . Critical Parts Destroyed . | . . . . . . . . . . Critical Strikes 6 | . . . . . . . 2 1 3 Sever 6 | . . . . . . . 2 1 3 Melee Attacks 101 | . . . . . . 24 25 28 24 Impact . | . . . . . . . . . . Slashing 101 | . . . . . . 24 25 28 24 Piercing . | . . . . . . . . . . Sneak Attacks 7 | . . . . . . 1 . 6 . Combat Hostiles . | . . . . . . . . . . Follow-up Attacks . | . . . . . . . . . . Damage Inflicted 8098 | . 252 119 . . 1046 322 1854 952 3553 Guns 1122 | . 252 . . . 754 . . . 116 Cannons . | . . . . . . . . . . Explosions 4236 | . . 116 . . 292 71 1321 . 2436 Melee 2737 | . . . . . . 251 533 952 1001 Ramming 3 | . . 3 . . . . . . . Kinetic 958 | . 88 . . . 754 . . . 116 Thermal 164 | . 164 . . . . . . . . Explosive 4236 | . . 116 . . 292 71 1321 . 2436 Electromagnetic . | . . . . . . . . . . Impact . | . . . . . . . . . . Slashing 2737 | . . . . . . 251 533 952 1001 Piercing . | . . . . . . . . . . Highest Corruption 1 | . . . . . . 1 1 1 1 Average Corruption 1 | . . . . . . 1 1 1 1 Corruption Purged . | . . . . . . . . . . Corruption Blocked . | . . . . . . . . . . Effects 13 | . . . . . . 1 2 2 8 Message Errors 4 | . . . . . . . 1 1 2 Matter Fused 2 | . . . . . . . . . 2 Heat Flow Errors 1 | . . . . . . . . . 1 Energy Discharges 1 | . . . . . . 1 . . . Parts Rejected 3 | . . . . . . . 1 . 2 Data Loss (minor) 1 | . . . . . . . . . 1 Data Loss (major) 1 | . . . . . . . . 1 . Overload Shots . | . . . . . . . . . . Overflow Damage 513 | . . 28 . . 15 106 44 235 85 Projectiles . | . . . . . . . . . . Explosions 152 | . . 28 . . 15 . 44 . 65 Melee 361 | . . . . . . 106 . 235 20 Knockbacks . | . . . . . . . . . . Impact . | . . . . . . . . . . Kinetic . | . . . . . . . . . . Secondary . | . . . . . . . . . . Self-Inflicted Damage 528 | . . 10 . . . . 171 . 347 Shots 21 | . . 1 . . . . 7 . 13 Rammed . | . . . . . . . . . . Targets Rammed 1 | . . 1 . . . . . . . Kicked 1 | . . 1 . . . . . . . Crushed . | . . . . . . . . . . Highest Temperature 335 | . 111 . . . 22 . 24 335 283 Average Temperature 39 | . 39 . . . 4 . 13 166 83 Received Heat Transfer 1177 | . 84 . . . 279 9 199 . 606 Effects 1 | . . . . . . . . . 1 Energy Bleed 1 | . . . . . . . . . 1 Siege Activations . | . . . . . . . . . . Robots Corrupted . | . . . . . . . . . . Combat Hostiles . | . . . . . . . . . . Parts Fried . | . . . . . . . . . . Impact Corruptions . | . . . . . . . . . . Robots Melted . | . . . . . . . . . . Combat Hostiles . | . . . . . . . . . . Parts Melted 1 | . 1 . . . . . . . . Heat Transferred 481 | . 481 . . . . . . . . Parts Sabotaged . | . . . . . . . . . . Parts Stolen . | . . . . . . . . . . Parts Stripped . | . . . . . . . . . . Power Chain Reactions . | . . . . . . . . . . Alert | -11 -10 -10 -10 -9 -8 -7 -7 -7 -7 ------- Run | Yrd Mat Min Exi Min Mat Fac Gar Fac Gar Peak Influence 1174 | . 86 164 . . 187 152 611 448 1174 Initial 320 | . . 33 . . . 43 35 320 173 Average 266 | . 37 93 . . 92 73 374 358 755 Maximum Alert Level 4 | . . . . . . . 2 2 4 Low Security (%) 65 | 100 100 100 . 100 100 100 28 . 4 Level 1 9 | . . . . . . . 8 78 4 Level 2 13 | . . . . . . . 62 21 34 Level 3 8 | . . . . . . . . . 43 Level 4 2 | . . . . . . . . . 13 Level 5 . | . . . . . . . . . . High Security . | . . . . . . . . . . Max Security . | . . . . . . . . . . Squads Dispatched 9 | . 1 . . . 3 4 . 1 . Investigation 3 | . . . . . 2 1 . . . Extermination 2 | . . . . . . 2 . . . Reinforcement 4 | . 1 . . . 1 1 . 1 . Assault . | . . . . . . . . . . Garrison . | . . . . . . . . . . Intercept . | . . . . . . . . . . Searches Triggered . | . . . . . . . . . . Construction Impeded . | . . . . . . . . . . Haulers Reinforced 1 | . . . . . . . . 1 . Active Scanning Responses . | . . . . . . . . . . Cargo Convoy Interrupts . | . . . . . . . . . . Stealth | -11 -10 -10 -10 -9 -8 -7 -7 -7 -7 --------- Run | Yrd Mat Min Exi Min Mat Fac Gar Fac Gar Distress Signals 6 | . 1 . . . 5 . . . . Communications Jammed 3 | . . . . . . . . 3 . Distress Signals 3 | . . . . . . . . 3 . Times Spotted 109 | . 4 3 . . 23 8 23 7 41 Peak Tracking Total 10 | . 4 3 . . 7 4 10 2 6 Tactical Retreats 7 | . . . . . 1 2 3 . 1 Traps | -11 -10 -10 -10 -9 -8 -7 -7 -7 -7 ------- Run | Yrd Mat Min Exi Min Mat Fac Gar Fac Gar Traps Triggered 6 | . . . . . . 2 2 . 2 Indirectly . | . . . . . . . . . . Trap Hack Attempts . | . . . . . . . . . . Triggered . | . . . . . . . . . . Disarmed . | . . . . . . . . . . Reprogrammed . | . . . . . . . . . . Reused . | . . . . . . . . . . Traps Extracted . | . . . . . . . . . . Installed . | . . . . . . . . . . Triggered 1 | . . 1 . . . . . . . Machines | -11 -10 -10 -10 -9 -8 -7 -7 -7 -7 ---------- Run | Yrd Mat Min Exi Min Mat Fac Gar Fac Gar Machines Disabled 13 | . 1 2 . . . . 5 . 5 Max in Single Turn 2 | . 1 1 . . . . 1 . 2 Garrison Relay 2 | . . . . . . . . . 2 Phase Generator 1 | . . . . . . . . . 1 Machines Repaired . | . . . . . . . . . . Machines Dismantled . | . . . . . . . . . . Machines Sabotaged . | . . . . . . . . . . Overloaded Fab Kills . | . . . . . . . . . . Hacking | -11 -10 -10 -10 -9 -8 -7 -7 -7 -7 --------- Run | Yrd Mat Min Exi Min Mat Fac Gar Fac Gar Machines Accessed 25 | . 2 . 2 . 7 6 2 4 2 Terminals 15 | . 2 . . . 5 3 2 1 2 Fabricators 2 | . . . . . . 1 . 1 . Repair Stations 3 | . . . . . 1 1 . 1 . Recycling Units . | . . . . . . . . . . Scanalyzers 1 | . . . . . 1 . . . . Garrison Access 2 | . . . . . . 1 . 1 . Total Hacks 61 | . 6 . 2 . 19 19 5 6 4 Successful 27 | . 2 . 2 . 10 7 2 3 1 Failed 34 | . 4 . . . 9 12 3 3 3 Catastrophic 3 | . . . . . . 2 . . 1 Database Lockouts . | . . . . . . . . . . Manual 31 | . 5 . 1 . 9 14 . 2 . Terminals 45 | . 6 . . . 14 14 5 2 4 Fabricators 2 | . . . . . . 1 . 1 . Repair Stations 7 | . . . . . 3 2 . 2 . Recycling Units . | . . . . . . . . . . Scanalyzers 2 | . . . . . 2 . . . . Garrison Access 3 | . . . . . . 2 . 1 . Terminal Hacks 10 | . . . 2 . 2 3 2 . 1 Record 1 | . . . 1 . . . . . . Part Schematic 2 | . . . . . 1 1 . . . Emergency Access Points 1 | . . . . . . . 1 . . Fabricator Index 1 | . . . . . . 1 . . . Alert Level 1 | . . . . . . 1 . . . Zone Layout 1 | . . . . . 1 . . . . Garrison Registry 2 | . . . . . . . 1 . 1 Derelict Proto ID Bank 1 | . . . 1 . . . . . . Fabricator Hacks 1 | . . . . . . . . 1 . Build 1 | . . . . . . . . 1 . Repair Station Hacks 2 | . . . . . 2 . . . . Scan Component 1 | . . . . . 1 . . . . Repair 1 | . . . . . 1 . . . . Recycling Unit Hacks . | . . . . . . . . . . Scanalyzer 1 | . . . . . 1 . . . . Insert Component 1 | . . . . . 1 . . . . Garrison Access Hacks 2 | . . . . . . 1 . 1 . Unlock Access 2 | . . . . . . 1 . 1 . Unauthorized Hacks 11 | . 2 . . . 5 3 . 1 . Terminals 10 | . 2 . . . 5 2 . 1 . Botnet 10 | . 2 . . . 5 2 . 1 . Fabricators . | . . . . . . . . . . Repair Stations 1 | . . . . . . 1 . . . Mechanics 1 | . . . . . . 1 . . . Recycling Units . | . . . . . . . . . . Scanalyzers . | . . . . . . . . . . Garrison Access . | . . . . . . . . . . Data Cores Recovered 1 | . . . . . . 1 . . . Used . | . . . . . . . . . . Hacking Detections 22 | . 2 . . . 7 5 2 4 2 Full Trace Events 4 | . . . . . 2 1 . . 1 Feedback Events 1 | . . . . . . 1 . . . Corruption 1 | . . . . . . 1 . . . Feedback Blocked . | . . . . . . . . . . Robot Schematics Acquired . | . . . . . . . . . . Robots Built . | . . . . . . . . . . Authchips . | . . . . . . . . . . Time . | . . . . . . . . . . Total Robot Build Rating . | . . . . . . . . . . Part Schematics Acquired 2 | . . . . . 1 1 . . . Parts Built 2 | . . . . . . . . 2 . Authchips . | . . . . . . . . . . Time 106 | . . . . . . . . 106 . Total Part Build Rating 12 | . . . . . . . . 12 . Parts Repaired 1 | . . . . . 1 . . . . Time 136 | . . . . . 136 . . . . Parts Recycled . | . . . . . . . . . . Recycled Matter . | . . . . . . . . . . Retrieved Matter . | . . . . . . . . . . Retrieved Components . | . . . . . . . . . . Parts Scanalyzed 1 | . . . . . 1 . . . . Part Schematics Acquired . | . . . . . . . . . . Parts Damaged 1 | . . . . . 1 . . . . Bothacking | -11 -10 -10 -10 -9 -8 -7 -7 -7 -7 ------------ Run | Yrd Mat Min Exi Min Mat Fac Gar Fac Gar Used RIF Installer 2 | . . . . . . . 1 . 1 Robot Detection 1 | . . . . . . . . . 1 Robots Hacked 3 | . . . . . . . . . 3 Non-combat . | . . . . . . . . . . Combat 3 | . . . . . . . . . 3 Robot Hacks Applied 3 | . . . . . . . . . 3 parse_system 1 | . . . . . . . . . 1 go_dormant 1 | . . . . . . . . . 1 overwrite_iff 1 | . . . . . . . . . 1 Relay Couplers Released 9 | . . . . . . . . . 9 Machine Destruction 9 | . . . . . . . . . 9 Attached 1 | . . . . . . . . . 1 Fabnet Peak Effective % . | . . . . . . . . . . Robots Rewired . | . . . . . . . . . . Allies Hacked . | . . . . . . . . . . Hacks Repelled . | . . . . . . . . . . Allies | -11 -10 -10 -10 -9 -8 -7 -7 -7 -7 -------- Run | Yrd Mat Min Exi Min Mat Fac Gar Fac Gar Total Allies 16 | . . . . 3 . 12 . . 1 Largest Group 4 | . . . . 3 3 4 . . 1 Highest-Rated Group 96 | . . . . 40 40 96 . . 32 Highest-Rated Ally 32 | . . . . 16 16 31 . . 32 Total Orders . | . . . . . . . . . . Ally Attacks 23 | . . . . . 6 16 . . 1 Total Damage 523 | . . . . . 29 443 . . 51 Kills 2 | . . . . . . 1 . . 1 Allies Corrupted . | . . . . . . . . . . Allies Melted . | . . . . . . . . . . Intel | -11 -10 -10 -10 -9 -8 -7 -7 -7 -7 ------- Run | Yrd Mat Min Exi Min Mat Fac Gar Fac Gar Robot Analysis Total . | . . . . . . . . . . Derelict Logs Recovered 3 | . . 1 . 2 . . . . . Drone Launches . | . . . . . . . . . . Drone Recoveries . | . . . . . . . . . . Exploration | -11 -10 -10 -10 -9 -8 -7 -7 -7 -7 ------------- Run | Yrd Mat Min Exi Min Mat Fac Gar Fac Gar Turns Passed 4500 | 58 276 668 439 92 864 561 282 429 831 Spaces Moved 3614 | 43 133 338 231 49 450 927 333 639 471 Core 20 | 13 . . . . . . . . 7 Treads . | . . . . . . . . . . Legs 1247 | 30 133 338 231 49 450 . . . 16 Wheels . | . . . . . . . . . . Hover 190 | . . . . . . . . . 190 Flight 2157 | . . . . . . 927 333 639 258 Fastest Speed 50 | 50 120 190 190 190 120 50 50 50 50 Average Speed 97 | 98 145 190 190 190 139 50 50 50 115 Slowest Speed 600 | 120 190 190 190 190 190 50 50 50 600 Overloaded Moves . | . . . . . . . . . . Propulsion Burnouts . | . . . . . . . . . . Robots Hopped 3 | . . . . . . . 1 . 2 Cave-ins Triggered . | . . . . . . . . . . Exploration Rate (%) 41 | 3 28 88 60 23 33 27 60 21 72 Regions Visited 9 Branch Regions 3 Pre-discovered Areas 1 | . . . 1 . . . . . . Known Exits Taken 4 | . . . . 1 1 1 . 1 . Unknown Exits Taken 4 | 1 1 1 1 . . . . . . Scrap Searched 2 | . . 2 . . . . . . . Spaces Dug 48 | . . . . . . 25 9 12 2 Terrain Destroyed 298 | . . 6 . . 12 31 95 12 142 Melee 32 | . . . . . . 20 . 12 . Projectile . | . . . . . . . . . . AOE 266 | . . 6 . . 12 11 95 . 142 Terrain Rammed . | . . . . . . . . . . Walls Destroyed . | . . . . . . . . . . Machines Disabled . | . . . . . . . . . . Actions | -11 -10 -10 -10 -9 -8 -7 -7 -7 -7 --------- Run | Yrd Mat Min Exi Min Mat Fac Gar Fac Gar Total 4273 | 59 184 360 232 48 586 1001 396 720 687 Wait 216 | . 25 15 . . 31 10 4 7 124 Move 3599 | 42 132 337 230 48 449 926 329 638 468 Hop 2 | . . . . . . . 1 . 1 Pick Up 88 | 9 7 3 2 . 22 14 3 18 10 Fast Attach . | . . . . . . . . . . Attach 45 | 6 2 . . . 9 7 6 1 14 Detach 1 | . . . . . . . 1 . . Swap 40 | . 1 2 . . 7 2 3 13 12 Drop 44 | 2 1 . . . 13 13 . 15 . Fire 133 | . 16 2 . . 55 2 24 . 34 Melee 101 | . . . . . . 24 25 28 24 Ram . | . . . . . . . . . . Kick 1 | . . 1 . . . . . . . Crush . | . . . . . . . . . . Escape Stasis 3 | . . . . . . 3 . . . Rewire . | . . . . . . . . . . Trap . | . . . . . . . . . . Miscellaneous . | . . . . . . . . . . Route ------- -11/Scrapyard -10/Materials -10/Mines (discovered 3 exits: [*Mat x2] / *Exi) -10/Exiles -9/Mines -8/Materials (discovered 2 exits: *Fac / Sto) -7/Factory (discovered 2 exits: *Fac / Gar) -7/Garrison (discovered 3 exits: *Fac x3) -7/Factory (discovered 2 exits: *Low / Gar) -7/Garrison (discovered 3 exits: *Fac x3) History --------- Turn | Location | Event 4 | -11/Scrapyard | Discovered new exit (range 15) 59 | -11/Scrapyard | Entered Materials 222 | -10/Materials | Discovered new exit (range 8) 315 | -10/Materials | Build established: Mutant 335 | -10/Materials | Entered Mines 353 | -10/Mines | Met a Derelict bent on vengeance 381 | -10/Mines | Discovered new exit (range 11) 492 | -10/Mines | Learned location of 1 exit from Materials 639 | -10/Mines | Found a hidden stash of uninstalled traps 725 | -10/Mines | Discovered new exit (range 9) 805 | -10/Mines | Found a damaged Exp. Sensor Array with a note attached 808 | -10/Mines | Found Prototype Device 995 | -10/Mines | Deemed a non-threat by the Exiles lab entrance 995 | -10/Mines | Discovered new exit (range 5) 1003 | -10/Mines | Entered Exiles 1049 | -10/Exiles | Met 8R-AWN 1083 | -10/Exiles | Met EX-HEX 1154 | -10/Exiles | Met EX-BIN 1182 | -10/Exiles | Aligned with FarCom system 1184 | -10/Exiles | Given EX-Vault access code 1228 | -10/Exiles | Opened EX-Vault 1241 | -10/Exiles | Found Longsword +1 1244 | -10/Exiles | Found Flying Fortress v7 1289 | -10/Exiles | Warned to stay clear of 0b10 Research branches 1342 | -10/Exiles | Met EX-DEC 1366 | -10/Exiles | Learned location of Zion (-7) 1420 | -10/Exiles | Discovered new exit (range 14) 1442 | -10/Exiles | Stole two prototypes: Flying Fortress v7, Longsword +1 1442 | -10/Exiles | Entered Mines 1448 | -9/Mines | Identified exit to Materials 1518 | -9/Mines | Assisted by bots powering up and referring to "LRC-V3" 1534 | -9/Mines | Entered Materials 1534 | -8/Materials | Accompanied by 3 allies 1534 | -8/Materials | Evolved 4 slots: Propulsion x2, Utility x2 1535 | -8/Materials | Identified exit to Storage 1536 | -8/Materials | Identified exit to Factory 1615 | -8/Materials | Lost 3 allies 1670 | -8/Materials | Identified Exp. Sensor Array 2024 | -8/Materials | Build established: Scavenger-Mutant 2299 | -8/Materials | Repaired Broken Exp. Sensor Array? 2398 | -8/Materials | Entered Factory 2398 | -7/Factory | Evolved 2 slots: Utility x2 2400 | -7/Factory | FarCom data flow suspended 2663 | -7/Factory | Allied Derelicts attacked 0b10 via Garrison Access 2700 | -7/Factory | Build established: Scout 2855 | -7/Factory | Discovered new exit (range 6) 2858 | -7/Factory | Identified exit to Factory 2959 | -7/Factory | Identified exit to Garrison 2959 | -7/Factory | Entered Garrison 3037 | -7/Garrison | Triggered checkpoint 3039 | -7/Garrison | Triggered checkpoint 3087 | -7/Garrison | Triggered checkpoint 3111 | -7/Garrison | Destroyed 17 combat bots 3117 | -7/Garrison | Triggered checkpoint 3127 | -7/Garrison | Installed Relay Interface Framework 3139 | -7/Garrison | Discovered new exit (range 53) 3139 | -7/Garrison | Discovered new exit (range 63) 3139 | -7/Garrison | Discovered new exit (range 7) 3240 | -7/Garrison | Identified exit to Factory 3241 | -7/Garrison | Entered Factory 3555 | -7/Factory | Fabricated Imp. Thermal Shield? 3652 | -7/Factory | Discovered new exit (range 6) 3654 | -7/Factory | Identified exit to Lower Caves 3669 | -7/Factory | Identified exit to Garrison 3670 | -7/Factory | Entered Garrison 3712 | -7/Garrison | Triggered checkpoint 3729 | -7/Garrison | Heavy support dispatched to Factory 3739 | -7/Garrison | Discovered exit to Factory (range 12) 3746 | -7/Garrison | Triggered checkpoint 3784 | -7/Garrison | Phase Generator disabled 3868 | -7/Garrison | Triggered checkpoint 3934 | -7/Garrison | Lost 3 parts (3n) 4030 | -7/Garrison | Triggered checkpoint 4072 | -7/Garrison | Discovered exit to Factory (range 19) 4072 | -7/Garrison | Discovered exit to Factory (range 58) 4072 | -7/Garrison | Discovered exit to Factory (range 53) 4110 | -7/Garrison | Triggered checkpoint 4235 | -7/Garrison | Garrison Relay disabled 4243 | -7/Garrison | Core integrity fell below 50% 4265 | -7/Garrison | Destroyed 8 combat bots 4277 | -7/Garrison | Expanded RIF knowledge: Robot Detection 4295 | -7/Garrison | Heavy support dispatched to Factory 4384 | -7/Garrison | Triggered checkpoint 4392 | -7/Garrison | Garrison Relay disabled 4429 | -7/Garrison | Lost 3 parts (1n1u1w) 4473 | -7/Garrison | Core integrity fell below 20% 4501 | -7/Garrison | Destroyed by Y-54 Guardian with Gatling Laser Last Messages --------------- 04469_ Jacked G-47 Trooper... >>parse_system Reading system data... 04472_ Aluminum Leg destroyed. 04474_ Destroyed Aluminum Leg. 04474_ Aluminum Leg destroyed. 04476_ G-47 Trooper destroyed. 04476_ Hacking Suite destroyed. 04478_ Jacked Y-54 Guardian... >>overwrite_iff Rewriting IFF filter. 04480_ G-47 Trooper destroyed. 04483_ Y-54 Guardian destroyed. 04483_ Jacked Y-54 Guardian... >>go_dormant Shutting down primary systems. 04484_ Acquired 45 matter. 04495_ Y-54 Guardian springs to life. 04495_ Enh. Nuclear Core destroyed. 04498_ Remote Datajack destroyed. Map ----- +----------------------------------------------------+ | | | | | | | | | ?????????????????????????????????????????????????? | | ?????????????????????????????????????????????????? | | ?????????????????????????????????????????????????? | | ?????????????????????????????????????????????????? | | ?????????????????????????????????????????????????? | | ?????????????????????????????????????????????????? | | ?????????????????????????????????????????????????? | | ?????????????????????????????????????????????????? | | ??????????????????????????????????????????????#### | | ??????????????????????????????????????????????#""" | | ????????????????????????????????####??????????#" " | | ?????????????????????????########!!##?????????#" " | | ?????????????????????????# #T #! #?????????#" " | | ?????????????????????????# " #!^ #?????????# | | ?????????????????????????### ### ##?????????## # | | ??????????#####????????????## #### ############# # | | ??????????# #"#????????????# # | | ??????????# "#????????????? ### #### # | | ??????????# "#??????????#### ### # | | ??????????# "#??????????# ## # [ | | ??????????# #"#?????????##!! # # # | | ??????????# ###???????###@*%[Y * *[# # | | ??####????# #?????????#*%[%^^ * ## ## * | | ??# #????# #?????????# ###!* ## [ ##?# ## | | ??# #????# #?????????# ##""! "## #??# "# | | ??# ##??### #?????????# ######### #??# """## # | | ??# ##### " #?????????# #???????# #??########## # | | ??# " #?????????# #???????# #???????????# # | | ### ##### " #?????????# #???????# #???????????# # | | #???### #?????????# #???????# #???????????# # | | #?????# #?????????# #???????# #???????????# # | | ## ####### #?????????# ######### ############# # | | ?# #?????????# | | ?# #### ####?????????# | | ?# #??# #????????????# | | ?# #??# #????????????# ### ### ############# # | | ?# #??# #????????????# #?# #?# #???????????# # | | ## #### ######???????# #?# #?# #????????#### # | | #???????# ### #?# ########## | | ## #### #### #???????# #?# | | ## #??# #??# #?####### #####?# ########## | | #??# #??# #?# =##^^^#?????# #?????#### " | | ## #??# #?## ### = ##^^^#?????# #?????#"""" """ | | ?# #### ### ####### #?????###" " | | ## #???????#" | | #???????#" " | +----------------------------------------------------+ Best States ------------- Heat Dissipation 34 Energy Generation 17 Energy Capacity 300 Matter Stores 300 Matter Capacity 300 Sight Range 16 Robot Scan Range 20 Terrain Scan Density 10 ECM Strength 1 Jamming Range 16 Armor Coverage 300 Evasion (%) 68 Offensive Hacking 20 Relay Coupler Types 1 Relay Coupler Value 20 Item Schematics ----------------- Lrg. Storage Unit | -8/Materials | Hacked Hvy. Missile Launcher | -7/Factory | Hacked Robot Schematics ------------------ None Fabricated ------------ Imp. Thermal Shield | x2 | -7/Factory | Preloaded Alien Tech Used ----------------- None Achievements -------------- No Signal Challenges ------------ None Game ------ Seed SmartbombOmegaTendrils Manual? 0 Play Time 01:05:06 Cumulative 81.6 hours Start 2024.04.13 @ 13:23:06 End 2024.04.13 @ 14:30:31 Sessions 1 Manual Loads 0 Difficulty Rogue Special Mode None Game No. 93 Rogue 93 Adventurer 0 Explorer 0 Win Type - Total 1 Types 1/0/0/0/0/0/0/0/0 Lore% 42 Gallery% 46 Achievement% 43 Wizard Run 0 Options --------- Layout 1 ASCII 0 Keyboard 0 Movement Mouse Keybinds 0 Fullscreen 2 Font 32/Smallcaps Map View 50x40 Zoom Use 0% Tactical HUD 1 Map Filters NONE Filters NONE Steam 1 RUN: 5a97b892-5e93-409f-9b1f-31623ea1f08c